[Event "FIDE WTC Prel-B 2022"]
[Site "Jerusalem"]
[Date "2022.11.20"]
[Round "2.22"]
[White "Piorun, Kacper"]
[Black "Nihal Sarin"]
[Result "1/2-1/2"]
[ECO "C77"]
[WhiteElo "2611"]
[BlackElo "2670"]
[Annotator "TA"]
[PlyCount "124"]
[EventDate "2022.11.20"]
[EventType "team-tourn"]
[EventCountry "ISR"]
[SourceTitle "playchess.com"]
[Source "ChessBase"]
[SourceQuality "1"]
[WhiteTeam "Poland"]
[BlackTeam "India"]
[WhiteTeamCountry "POL"]
[BlackTeamCountry "IND"]
[TimeControl "2700+10"]

{[%evp 16,124,8,0,15,21,20,21,2,4,11,0,0,0,11,8,5,3,7,11,9,13,12,0,6,8,57,7,27,17,39,33,30,30,17,25,20,10,70,47,41,64,45,14,31,31,30,26,65,32,14,0,0,15,25,25,25,0,0,0,0,0,0,0,0,0,0,0,0,0,0,0,0,0,0,0,0,0,0,0,0,0,0,0,0,0,0,0,0,0,0,0,0,0,0,0,0,-10,-16,-14,0,0,0,0,0,0,0,0,0,0,0]} 1. e4 {[%emt 0:00:03]} e5 {[%emt 0:00:01]} 2. Nf3 {[%emt 0:00:03]} Nc6 {[%emt 0:00:02]} 3. Bb5 {[%emt 0:00:04][%cal Bf1b5,Bb5a4,Ba4b3][%mdl 32]} a6 {[%emt 0:00:01]} 4. Ba4 {[%emt 0:00:02]} Nf6 {[%emt 0:00:01]} 5. O-O {[%emt 0:00:03]} Be7 {[%emt 0:00:01]} 6. d3 {[%emt 0:01:00]} b5 {[%emt 0:00:10]} 7. Bb3 {[%emt 0:00:01]} d6 {[%emt 0:00:01]} 8. a3 {[%emt 0:00:31]} O-O {[%emt 0:00:04]} 9. Nc3 {[%emt 0:00:02]} Na5 {[%emt 0:00:02] C77: Ruy Lopez: 3...a6 4 Ba4 Nf6, unusual lines.} 10. Ba2 {[%emt 0:00:02]} Be6 {[%emt 0:00:01]} 11. b4 {[%emt 0:01:11]} Bxa2 {[%emt 0:00:03]} 12. Nxa2 {[%emt 0:00:41]} Nc6 {[%emt 0:00:04]} 13. Bd2 {[%emt 0:00:14] [#]} Re8 $146 {[%emt 0:09:23]} ({Predecessor:} 13... a5 14. Qb1 axb4 15. axb4 Qd7 16. Qb3 Ra4 17. c4 Rfa8 18. cxb5 Nd4 19. Nxd4 exd4 {0-1 (26) Salinas Herrera,P (2514)-Mozharov,M (2558) Chess.com INT 2020}) 14. Re1 {[%emt 0:00:25]} Qd7 {[%emt 0:00:01]} 15. c4 {[%emt 0:00:12]} Nd4 {[%emt 0:00:02]} 16. Nc3 {[%emt 0:01:14]} Nxf3+ {[%emt 0:00:03]} 17. Qxf3 {[%emt 0:00:02]} c6 {[%emt 0:00:01]} 18. h3 {[%emt 0:04:50]} Qe6 {[%emt 0:00:37]} 19. Rec1 {[%emt 0:01:49]} h6 {[%emt 0:00:26]} 20. Ne2 {[%emt 0:01:36]} Bf8 {[%emt 0:05:33]} (20... Rac8 $11) 21. Ng3 {[%emt 0:03:46]} (21. cxb5 $14 cxb5 22. Nc3) 21... g6 {[%emt 0:01:40]} 22. a4 {[%emt 0:00:06]} Bg7 {[%emt 0:02:37]} 23. axb5 {[%emt 0:04:59]} axb5 {[%emt 0:00:03]} 24. Ra5 {[%emt 0:00:02]} Reb8 {[%emt 0:09:39]} 25. cxb5 {[%emt 0:07:41]} cxb5 {[%emt 0:00:04]} 26. Qd1 {[%emt 0:00:16]} Nd7 {[%emt 0:11:03]} (26... d5 $11) 27. Nf1 {[%emt 0:03:00][%cal Bg3f1,Bf1e3,Be3d5][%mdl 32] White is more active.} (27. Ne2 $5 {[%cal Re2c3]}) 27... Rxa5 {[%emt 0:00:28]} 28. bxa5 {[%emt 0:00:01]} Nc5 {[%emt 0:00:00]} 29. Bb4 {[%emt 0:01:10]} Na6 {[%emt 0:00:02]} 30. Be1 {[%emt 0:01:45]} b4 {[%emt 0:04:32]} 31. Ne3 {[%emt 0:00:03] [#] Strongly threatening Rc6.} b3 {[%emt 0:00:01]} 32. Nd5 {[%emt 0:04:08] Hoping for Rb1.} Qd7 {[%emt 0:00:01]} 33. Rc6 {[%emt 0:04:52]} Nc5 {[%emt 0:03:17]} 34. Bb4 {[%emt 0:02:22][%cal Ob4c5]} Kh8 {[%emt 0:00:24]} 35. Rb6 {[%emt 0:01:28]} Rxb6 {[%emt 0:00:07]} 36. axb6 {[%emt 0:00:45]} Qb5 {[%emt 0:00:01] The position is equal.} 37. Qa1 {[%emt 0:00:06] White threatens Qa8+ and mate.} Na4 {[%emt 0:00:44]} (37... Nxd3 {is a self mate.} 38. Qa8+ Kh7 {[#]} 39. Ne7 $1 h5 40. Qg8+ Kh6 41. Bd2+ Nf4 42. Qxf7) 38. Qa3 {[%emt 0:00:44]} b2 {[%emt 0:00:00]} 39. Qb3 {[%emt 0:00:06]} Nxb6 {[%emt 0:00:00]} 40. Nxb6 {[%emt 0:00:10]} Qxb6 {[%emt 0:00:00]} 41. Qxb2 $11 {[%emt 0:00:01][%mdl 4096] Endgame KQB-KQB} Bf8 {[%emt 0:00:15]} 42. Qa3 {[%emt 0:00:13]} Kg7 {[%emt 0:00:05]} 43. Kf1 {[%emt 0:00:06]} Be7 {[%emt 0:00:06]} 44. Ke2 {[%emt 0:00:09]} Qc6 {[%emt 0:00:04]} 45. Qb3 {[%emt 0:00:19]} Qb7 {[%emt 0:00:19][%cal Od6d5] White must now prevent ...d5!} 46. Qc3 {[%emt 0:00:09]} Kg8 {[%emt 0:00:08]} 47. Ba3 {[%emt 0:00:06]} Qa6 {[%emt 0:00:18]} 48. g3 {[%emt 0:00:13]} h5 {[%emt 0:00:05]} 49. Bb2 {[%emt 0:00:13]} Qb7 {[%emt 0:00:20]} 50. Kf1 {[%emt 0:00:07]} Bf6 {[%emt 0:00:12]} 51. Ba3 {[%emt 0:00:13]} d5 {[%emt 0:00:06]} 52. exd5 {[%emt 0:00:13]} Qxd5 {[%emt 0:00:04]} 53. Qc8+ {[%emt 0:00:07]} Kg7 {[%emt 0:00:12]} 54. Kg1 {[%emt 0:00:13]} h4 {[%emt 0:00:04] Threatens to win with ...hxg3.} 55. Qc4 {[%emt 0:00:09]} Qa8 {[%emt 0:00:15]} 56. Qb4 {[%emt 0:00:12]} hxg3 {[%emt 0:00:09]} 57. fxg3 {[%emt 0:00:00]} Bg5 {[%emt 0:00:19] ...Qf3 is the strong threat.} 58. Kf2 {[%emt 0:00:32] Inhibits Qf3+.} Qa7+ {[%emt 0:00:16]} 59. Qc5 {[%emt 0:00:00]} Qd7 {[%emt 0:00:10][%csl LRd3,LRh3]} 60. Qxe5+ {[%emt 0:00:04]} Bf6 {[%emt 0:00:01]} 61. Bf8+ {[%emt 0:00:06]} Kxf8 {[%emt 0:00:01]} 62. Qxf6 {[%emt 0:00:02]} Qxd3 {[%emt 0:00:03] Weighted Error Value: White=0.05 (flawless) /Black=0.06 (flawless)} 1/2-1/2

[Event "FIDE WTC Prel-B 2022"]
[Site "Jerusalem"]
[Date "2022.11.20"]
[Round "2.23"]
[White "Narayanan.S.L"]
[Black "Bartel, Mateusz"]
[Result "1-0"]
[ECO "D35"]
[WhiteElo "2673"]
[BlackElo "2627"]
[Annotator "TA"]
[PlyCount "67"]
[EventDate "2022.11.20"]
[EventType "team-tourn"]
[EventCountry "ISR"]
[SourceTitle "playchess.com"]
[Source "ChessBase"]
[SourceQuality "1"]
[WhiteTeam "India"]
[BlackTeam "Poland"]
[WhiteTeamCountry "IND"]
[BlackTeamCountry "POL"]
[TimeControl "2700+10"]

{[%evp 16,67,20,20,20,20,26,22,20,31,28,0,5,-1,13,-22,59,-38,0,-50,93,88,77,81,90,100,200,170,202,166,227,171,169,101,99,81,172,176,96,7,37,0,210,208,29976,29976,29973,29975,29975,29977,29977,485,469,441]} 1. d4 {[%emt 0:00:03]} d5 {[%emt 0:00:03]} 2. c4 {[%emt 0:00:02]} e6 {[%emt 0:00:02]} 3. Nf3 {[%emt 0:00:17]} Nf6 {[%emt 0:00:03]} 4. Nc3 {[%emt 0:00:02]} Nbd7 {[%emt 0:00:02]} 5. cxd5 {[%emt 0:00:02]} exd5 {[%emt 0:00:05]} 6. Bg5 {[%emt 0:00:02]} c6 {[%emt 0:00:44]} 7. e3 {[%emt 0:00:03]} Be7 {[%emt 0:00:04]} 8. Bd3 {[%emt 0:00:35]} h6 {[%emt 0:00:07]} 9. Bf4 {[%emt 0:01:36]} Nh5 {[%emt 0:00:51] D35: Queen's Gambit Declined: Exchange Variation.} 10. Be5 {[%emt 0:00:02]} Nxe5 {[%emt 0:02:38]} 11. dxe5 {[%emt 0:00:45]} g6 {[%emt 0:00:10] The position is equal.} 12. Qc2 {[%emt 0:02:50][%cal Od3g6]} Ng7 {[%emt 0:07:33]} 13. O-O-O {[%emt 0:00:31]} O-O {[%emt 0:03:24] [#]} 14. h4 $146 {[%emt 0:07:58][%cal Oh4h5]} ({Predecessor:} 14. e4 d4 15. Bc4 b5 16. Bb3 Bg4 17. Rxd4 Qb6 18. Rhd1 Rad8 19. Rxd8 Rxd8 20. Rxd8+ Bxd8 {½-½ (47) Jaracz,P (2456)-Jianu,V (2532) Chess.com INT 2021}) 14... Bg4 {[%emt 0:01:26]} 15. Kb1 {[%emt 0:03:06]} Rc8 {[%emt 0:04:13]} (15... h5 $11) 16. Ka1 {[%emt 0:08:00]} (16. h5 $14 gxh5 17. Ne2) 16... Qc7 {[%emt 0:02:57]} 17. Ne2 {[%emt 0:03:47]} ({White should try} 17. Rc1 $11) 17... Rfd8 {[%emt 0:04:44]} ({Reject} 17... Bxf3 18. gxf3 Qxe5 19. f4 $11) (17... h5 $15) 18. Nh2 $1 $16 {[%emt 0:00:52]} Bxe2 {[%emt 0:01:48]} 19. Bxe2 {[%emt 0:00:08][%cal Oh4h5] h5! is the strong threat.} Qxe5 {[%emt 0:07:35]} 20. Ng4 $1 {[%emt 0:00:12][%csl LRe5,LRh6]} Qe4 {[%emt 0:00:02]} (20... Qe6 $16) 21. Nxh6+ $18 {[%emt 0:00:21]} Kf8 {[%emt 0:00:01] [#]} 22. Bd3 {[%emt 0:01:10]} Qe5 {[%emt 0:00:44]} (22... Qe6 {is a better defense.} 23. g4 Rc7) 23. h5 {[%emt 0:03:14]} gxh5 {[%emt 0:00:02]} 24. Nf5 {[%emt 0:00:48]} ({White should play} 24. f4 $18 Qf6 25. Nf5) 24... Nxf5 $16 {[%emt 0:00:03]} 25. Bxf5 {[%emt 0:00:02]} Rc7 {[%emt 0:00:02]} (25... Ra8 $16) 26. Rxh5 $18 {[%emt 0:00:54]} Bf6 {[%emt 0:00:02]} 27. Bg4 {[%emt 0:01:42]} (27. g4 $16) 27... Qd6 {[%emt 0:00:09]} 28. Rdh1 {[%emt 0:01:07]} (28. Qd2 $5 {[%cal Re3e4]}) 28... d4 $2 {[%emt 0:01:39] [#]} (28... Re8 $11 {and Black is okay.}) 29. Qe4 $1 {[%emt 0:02:03][%cal Oh5h8] And now Rh8+! would win.} dxe3 $2 {[%emt 0:01:11] [#]} (29... Kg8 $18 30. Qh7+ Kf8) 30. Rh8+ $1 {[%emt 0:00:29][%mdl 576] Zwischenzug} Bxh8 {[%emt 0:00:02]} 31. Rxh8+ {[%emt 0:00:02]} Kg7 {[%emt 0:00:01]} 32. Qh7+ {[%emt 0:00:01]} Kf6 {[%emt 0:00:02]} 33. Qh6+ {[%emt 0:00:02]} (33. Rxd8 $142 Qxd8 34. Qh4+ Kg6 35. Qxd8 exf2 36. Be2 f6 37. Qxc7 a5 38. Qxb7) 33... Ke7 {[%emt 0:00:19][%cal Od6d1] ( -> ...Qd1+!)} 34. Qxe3+ {[%emt 0:00:11] Weighted Error Value: White=0.49/Black=0.61} 1-0

[Event "FIDE WTC Prel-B 2022"]
[Site "Jerusalem"]
[Date "2022.11.20"]
[Round "2.24"]
[White "Janik, Igor"]
[Black "Sethuraman, S.P."]
[Result "1-0"]
[ECO "E06"]
[WhiteElo "2539"]
[BlackElo "2643"]
[Annotator "TA"]
[PlyCount "95"]
[EventDate "2022.11.20"]
[EventType "team-tourn"]
[EventCountry "ISR"]
[SourceTitle "playchess.com"]
[Source "ChessBase"]
[SourceQuality "1"]
[WhiteTeam "Poland"]
[BlackTeam "India"]
[WhiteTeamCountry "POL"]
[BlackTeamCountry "IND"]
[TimeControl "2700+10"]

{[%evp 17,95,50,62,63,52,48,43,55,72,41,50,47,58,29,31,11,36,23,48,49,68,71,68,69,74,63,38,50,88,44,69,55,128,137,115,114,132,27,22,24,13,0,67,0,0,-53,0,-11,306,299,310,299,220,164,132,0,39,0,50,67,355,348,340,335,294,294,561,553,545,553,543,520,727,697,1039,924,1605,1440,29981,29982]} 1. c4 {[%emt 0:00:01]} Nf6 {[%emt 0:00:08]} 2. Nf3 {[%emt 0:00:02]} e6 {[%emt 0:00:06]} 3. g3 {[%emt 0:00:10]} d5 {[%emt 0:00:08]} 4. Bg2 {[%emt 0:00:01]} c6 {[%emt 0:00:57]} 5. O-O {[%emt 0:00:17]} Be7 {[%emt 0:01:31]} 6. d4 {[%emt 0:00:19]} O-O {[%emt 0:00:18]} 7. Nc3 {[%emt 0:00:22]} b6 {[%emt 0:00:41]} 8. Ne5 {[%emt 0:00:17]} Bb7 {[%emt 0:02:51]} 9. e4 {[%emt 0:01:34]} Na6 {[%emt 0:02:13]} 10. Bf4 {[%emt 0:06:25] White is more active. E06: Closed Catalan: Early deviations.} dxc4 {[%emt 0:01:06]} 11. Nxc4 {[%emt 0:00:13]} b5 {[%emt 0:00:01]} 12. Ne3 {[%emt 0:03:12] White is slightly better.} b4 {[%emt 0:01:28]} 13. e5 {[%emt 0:01:39]} Nd5 {[%emt 0:03:10]} 14. Ncxd5 {[%emt 0:01:10]} cxd5 {[%emt 0:00:01]} 15. h4 {[%emt 0:00:03] [#]} (15. Qg4 $5 {[%cal Rf4h6]}) 15... Qb6 $146 {[%emt 0:00:21]} ({Predecessor:} 15... Nb8 16. h5 Nd7 17. Ng4 Qb6 18. Be3 Ba6 19. Re1 Rfc8 20. f4 b3 21. axb3 Bb4 {1-0 (40) Jankovic,A (2573)-Gjuran,D (2351) Slovenia 2011}) 16. h5 {[%emt 0:03:22]} (16. a4 $5 {[%cal Ra4a5]}) 16... f5 {[%emt 0:02:33]} 17. Qd2 {[%emt 0:02:04]} Nc7 {[%emt 0:00:56]} 18. a4 {[%emt 0:01:09]} b3 {[%emt 0:06:23]} 19. Rfc1 {[%emt 0:02:01] a5 is the strong threat.} Rac8 {[%emt 0:01:07]} 20. g4 {[%emt 0:04:23]} Bb4 {[%emt 0:09:10]} 21. Qd1 {[%emt 0:00:04]} fxg4 {[%emt 0:00:03]} 22. Bg3 {[%emt 0:00:09]} h6 {[%emt 0:02:08]} 23. Qxg4 {[%emt 0:04:01] And now Bf1 would win.} (23. Qxb3 {seems wilder.} Bd2 24. Qxb6 axb6 25. Rc2) 23... Rf7 {[%emt 0:00:47]} 24. Rd1 {[%emt 0:00:59]} (24. Bh3 $5 {[%cal Ra4a5]}) 24... Rcf8 {[%emt 0:02:30]} (24... Ba6 $1 $14) 25. Rd3 $1 $16 {[%emt 0:02:08]} a5 {[%emt 0:01:28]} 26. Rxb3 {[%emt 0:00:45]} Ba6 {[%emt 0:00:01]} 27. Qd1 {[%emt 0:02:24]} (27. Rc1 $16) 27... Bc4 $1 $11 {[%emt 0:00:39]} 28. Nxc4 {[%emt 0:00:03]} dxc4 {[%emt 0:00:02]} 29. Re3 {[%emt 0:00:43]} Rd7 {[%emt 0:02:09]} (29... Nd5 $11) 30. Qg4 {[%emt 0:00:18]} ({White should try} 30. Qc2 $1 $14) 30... Rxd4 {[%emt 0:00:57]} 31. Be4 {[%emt 0:00:17]} ({White should play} 31. Re4 $11 Bc5 32. Rxd4 Bxd4 33. Rf1) 31... Bc5 {[%emt 0:00:26]} (31... Bd2 32. Qg6 $1 Rxe4 33. Rxe4 Qxb2 34. Rf1 $16) (31... Nd5 $1 $15 32. Re2 (32. Qg6 Nxe3 33. Qh7+ Kf7 $15) 32... c3) 32. Rf1 {[%emt 0:02:27] [#]} Qxb2 $2 {[%emt 0:02:16][%mdl 8192]} (32... Rd2 $2 33. Qg6 $1 $18) (32... Rf5 $1 $11 {and Black is okay.} 33. Qh3 (33. Qg6 $2 Rxe4 34. Rxe4 Rg5 $19) (33. Bh4 Nd5) 33... Rg5) 33. Qg6 $18 {[%emt 0:00:19]} Rxe4 {[%emt 0:00:19]} 34. Rxe4 {[%emt 0:00:01]} c3 {[%emt 0:01:34]} (34... Qc2 $2 35. Rg4 Qxg6 36. hxg6) 35. Rc4 {[%emt 0:00:27]} ({Don't play} 35. Rg4 Rf7) 35... Bb6 {[%emt 0:00:15]} 36. Rf4 $40 {[%emt 0:04:41][%mdl 128] White attacks. Really sharp!} ({Better is} 36. Rc6 $1 $16) 36... Qd2 {[%emt 0:00:11]} 37. Rxf8+ {[%emt 0:00:43]} Kxf8 {[%emt 0:00:00]} 38. Qg4 $1 {[%emt 0:00:00] Hoping for Rd1.} c2 {[%emt 0:00:16][%mdl 8192] [#] Prevents Rd1.} (38... Qg5 $14 39. Qf3+ Qf5 40. Qxc3 (40. Qb7 $2 Nd5 $19) 40... Nd5 41. Qa3+ (41. Qc8+ Kf7 $11) 41... Kf7) 39. Qf4+ $1 {[%emt 0:00:16]} Qxf4 {[%emt 0:00:04]} 40. Bxf4 {[%emt 0:00:01][%mdl 4096] Endgame KRB-KBN} Nd5 {[%emt 0:00:18] [#]} 41. Bd2 {[%emt 0:00:00]} Nb4 $2 {[%emt 0:00:14]} (41... Bd4 42. Rc1 (42. Bxa5 Bc3 $11) 42... Kf7 43. Bxa5 Bxe5 44. Rxc2 Ke7) 42. Rc1 {[%emt 0:00:01]} Nd3 {[%emt 0:00:08]} 43. Rxc2 {[%emt 0:00:02]} Nxe5 {[%emt 0:00:03]} 44. Kg2 {[%emt 0:00:28][%cal Od2a5] Inhibits Nf3. Threatens to win with Bxa5!} Ke7 {[%emt 0:00:11] [#]} 45. Bxa5 $1 {[%emt 0:00:08][%mdl 512]} Bxa5 {[%emt 0:00:16]} (45... Nd3 46. Bd2) 46. Rc5 $1 {[%emt 0:00:01][%csl LRa5,LRe5]} Kd6 {[%emt 0:00:15]} 47. Rxa5 {[%emt 0:00:02]} g6 {[%emt 0:00:02] [#]} 48. Rxe5 $1 {[%emt 0:00:05][%mdl 512] Weighted Error Value: White=0.22 (precise) /Black=0.62} 1-0

[Event "FIDE WTC Prel-B 2022"]
[Site "Jerusalem"]
[Date "2022.11.21"]
[Round "3.13"]
[White "Wojtaszek, Radoslaw"]
[Black "Rodshtein, Maxim"]
[Result "1-0"]
[ECO "D43"]
[WhiteElo "2686"]
[BlackElo "2618"]
[Annotator "TA"]
[PlyCount "61"]
[EventDate "2022.11.20"]
[EventType "team-tourn"]
[EventCountry "ISR"]
[SourceTitle "playchess.com"]
[Source "ChessBase"]
[SourceQuality "1"]
[WhiteTeam "Poland"]
[BlackTeam "Israel"]
[WhiteTeamCountry "POL"]
[BlackTeamCountry "ISR"]
[TimeControl "2700+10"]

{[%evp 14,61,25,6,30,38,40,40,39,46,41,41,47,49,58,43,64,67,110,22,29,32,28,22,48,31,42,39,42,56,79,27,18,0,6,8,0,0,71,0,0,0,483,464,481,476,416,432,821,802]} 1. d4 {[%emt 0:00:03]} Nf6 {[%emt 0:00:04]} 2. Nf3 {[%emt 0:00:03]} e6 {[%emt 0:00:24]} 3. c4 {[%emt 0:00:03]} d5 {[%emt 0:00:06]} 4. Nc3 {[%emt 0:00:03]} c6 {[%emt 0:00:19]} 5. Bg5 {[%emt 0:00:03]} h6 {[%emt 0:00:11]} 6. Bxf6 {[%emt 0:00:03]} Qxf6 {[%emt 0:00:03]} 7. e3 {[%emt 0:00:04]} Nd7 {[%emt 0:00:10]} 8. Be2 {[%emt 0:00:05]} dxc4 {[%emt 0:02:41] D43: Semi-Slav: 5 Bg5 h6.} 9. O-O {[%emt 0:00:36] is cutting edge theory.} g6 {[%emt 0:01:14]} 10. Ne4 {[%emt 0:00:18]} Qe7 {[%emt 0:05:26] White is slightly better.} 11. Ne5 {[%emt 0:01:46]} Bg7 {[%emt 0:00:03]} 12. f4 {[%emt 0:00:02]} ({Reject} 12. Bxc4 Nxe5 13. dxe5 Bxe5 $17) 12... O-O {[%emt 0:00:14]} 13. Bxc4 {[%emt 0:00:21]} Rd8 {[%emt 0:06:43] [#]} 14. Qf3 $146 {[%emt 0:01:15]} ({Predecessor:} 14. Qe1 f5 15. Nc3 Kh7 16. Rc1 a6 17. Bb3 c5 18. Na4 cxd4 19. exd4 b5 20. Nc6 {½-½ (37) Zhukova,N (2475)-Goryachkina,A (2475) Baku 2016}) 14... Kh7 {[%emt 0:04:10]} 15. Qg3 {[%emt 0:04:34][%cal Oe5f7]} Nf8 {[%emt 0:02:28]} 16. h4 {[%emt 0:09:33] White has more active pieces. The black rooks are badly placed.} ({White should play} 16. Qh3 $16 Kg8 17. g4) 16... f5 $11 {[%emt 0:04:31]} 17. Nc5 {[%emt 0:02:01]} Bf6 {[%emt 0:05:19]} 18. h5 {[%emt 0:00:23]} gxh5 {[%emt 0:00:27]} 19. Rad1 {[%emt 0:00:03]} (19. Qf3 $5 {[%cal Rf3h5]}) 19... Bxe5 {[%emt 0:02:14]} 20. fxe5 {[%emt 0:00:44][%cal Of1f5] [#] Threatens to win with Rxf5!} Qg5 {[%emt 0:00:53]} 21. Qf3 {[%emt 0:06:59][%mdl 1024] White has compensation.} Qg4 {[%emt 0:01:31]} 22. Qf2 {[%emt 0:01:42]} (22. Kf2 $16) 22... b6 {[%emt 0:00:49]} 23. Nd3 {[%emt 0:01:38] With the idea Nf4.} Ng6 {[%emt 0:00:44]} 24. Nf4 {[%emt 0:03:21]} Nxf4 {[%emt 0:00:05]} 25. exf4 {[%emt 0:00:01]} h4 {[%emt 0:01:34]} (25... Qg6 $11 {remains equal.}) 26. Rd3 {[%emt 0:03:05]} (26. Kh2 $16) 26... c5 $1 {[%emt 0:01:03]} 27. Rh3 {[%emt 0:04:20]} Rxd4 $2 {[%emt 0:00:23][%mdl 8192]} (27... Bb7 $1 $11 {and Black has nothing to worry.}) 28. Be2 $18 {[%emt 0:00:36]} Qg7 {[%emt 0:02:21] [#] Hoping for ...Bb7.} 29. Qxh4 {[%emt 0:00:04] White threatens Rff3 and mate.} Bb7 {[%emt 0:02:06][%csl Gb7][%cal Rg7g2] Against Rff3} 30. Rg3 {[%emt 0:00:01]} Qd7 {[%emt 0:00:27]} (30... Qxg3 $142 31. Qxg3 Rg8) 31. Kf2 {[%emt 0:00:32] Weighted Error Value: White=0.14 (very precise) /Black=0.26 (precise)} ({Not} 31. Qf6 Rg8 32. Rxg8 Kxg8 $11) 1-0

[Event "FIDE WTC Prel-B 2022"]
[Site "Jerusalem"]
[Date "2022.11.21"]
[Round "3.14"]
[White "Nabaty, Tamir"]
[Black "Piorun, Kacper"]
[Result "1-0"]
[ECO "A47"]
[WhiteElo "2629"]
[BlackElo "2611"]
[Annotator "TA"]
[PlyCount "99"]
[EventDate "2022.11.20"]
[EventType "team-tourn"]
[EventCountry "ISR"]
[SourceTitle "playchess.com"]
[Source "ChessBase"]
[SourceQuality "1"]
[WhiteTeam "Israel"]
[BlackTeam "Poland"]
[WhiteTeamCountry "ISR"]
[BlackTeamCountry "POL"]
[TimeControl "2700+10"]

{[%evp 15,99,5,10,2,33,26,29,1,17,0,34,4,27,14,53,8,11,12,25,28,28,28,21,0,0,0,47,38,54,54,43,47,57,50,56,30,27,20,13,35,22,22,63,58,64,62,113,100,94,100,98,94,94,94,114,113,110,110,178,120,87,120,191,194,188,146,137,135,378,399,586,586,570,501,429,227,525,522,1015,977,930,925,775,781,1403,631]} 1. d4 {[%emt 0:00:05]} Nf6 {[%emt 0:00:03]} 2. Nf3 {[%emt 0:00:01]} e6 {[%emt 0:00:02]} 3. Bf4 {[%emt 0:00:02]} b6 {[%emt 0:00:16]} 4. e3 {[%emt 0:00:03]} Bb7 {[%emt 0:00:15]} 5. Nbd2 {[%emt 0:00:03]} c5 {[%emt 0:01:11]} 6. c3 {[%emt 0:00:28]} Be7 {[%emt 0:00:13]} 7. h3 {[%emt 0:00:07]} O-O {[%emt 0:01:19]} 8. Bd3 {[%emt 0:00:03]} d6 {[%emt 0:00:25]} 9. O-O {[%emt 0:00:21] A47: 1 d4 Nf6 2 Nf3 b6: Torre, London and Colle Systems.} cxd4 {[%emt 0:01:19]} 10. cxd4 {[%emt 0:00:06]} (10. Nxd4 $2 e5 11. Bg3 exd4 $19) 10... Nbd7 {[%emt 0:02:39]} 11. e4 {[%emt 0:01:30] White has an edge.} Re8 {[%emt 0:01:19]} 12. Re1 {[%emt 0:01:40]} a6 {[%emt 0:06:23][%cal Oe6e5]} 13. Bh2 {[%emt 0:01:47]} Bf8 {[%emt 0:00:18]} 14. Rc1 {[%emt 0:01:34]} b5 {[%emt 0:03:09] [#]} 15. e5 $146 {[%emt 0:00:29]} ({Predecessor:} 15. Bb1 e5 16. d5 Qb6 17. Qe2 Rac8 18. Nf1 g6 19. Ne3 Bh6 20. Bg3 Nh5 21. Rxc8 Rxc8 {1-0 (46) Saduakassova,D (2378)-Tregubov,P (2423) Riga 2021}) 15... dxe5 {[%emt 0:00:15]} 16. dxe5 {[%emt 0:00:03]} Nc5 {[%emt 0:00:06][%cal Bd7c5,Bc5a4,Ba4b2,Bb2c4][%mdl 32]} 17. Bb1 {[%emt 0:01:09]} Nfd7 {[%emt 0:02:47]} 18. Bf4 {[%emt 0:04:15][%cal Ob1h7] [#] Strongly threatening Bxh7+!} Be7 {[%emt 0:04:08]} 19. b4 {[%emt 0:06:32]} Na4 {[%emt 0:00:02]} 20. Ne4 {[%emt 0:00:02]} Nf8 {[%emt 0:06:15]} (20... Rc8 $11) 21. Nd6 $14 {[%emt 0:03:18]} Bxd6 {[%emt 0:00:02]} 22. exd6 {[%emt 0:00:04] aiming for Ne5.} (22. Qxd6 Bxf3 23. gxf3 Qh4 $11) 22... Nb2 $1 {[%emt 0:00:06]} 23. Qd4 {[%emt 0:02:59]} Nc4 {[%emt 0:00:39]} 24. Bd3 $1 {[%emt 0:02:45]} e5 {[%emt 0:06:31]} 25. Bxe5 {[%emt 0:00:43] A strong pair of Bishops.} Ne6 $1 {[%emt 0:00:48]} 26. Qh4 {[%emt 0:04:40]} Qxh4 {[%emt 0:00:07]} 27. Nxh4 {[%emt 0:00:01]} Nxe5 {[%emt 0:00:25]} 28. Rxe5 {[%emt 0:00:03]} Red8 {[%emt 0:00:01]} 29. Rd1 $1 $36 {[%emt 0:01:37][%mdl 2048] White is more active. White is much more active.} (29. Nf5 g6 30. Ng3 Rxd6 $11) 29... g6 {[%emt 0:00:05]} 30. Be2 {[%emt 0:00:37]} Rac8 {[%emt 0:01:47]} (30... Rab8 $14) 31. Bg4 $16 {[%emt 0:01:26]} Rc4 {[%emt 0:00:10]} 32. Rxe6 {[%emt 0:05:29]} ({Reject} 32. Bxe6 $6 fxe6 33. Nf3 Bxf3 34. gxf3 Kf7 $11) 32... Rxg4 {[%emt 0:00:25]} 33. Re8+ $1 {[%emt 0:00:14]} ({But not} 33. hxg4 fxe6 34. Nf3 Bxf3 35. gxf3 Kf7 $14) 33... Rxe8 {[%emt 0:00:07]} 34. hxg4 {[%emt 0:00:02][%mdl 4096] Endgame KRB-KRN} f6 {[%emt 0:02:09]} 35. f4 {[%emt 0:00:14][%cal Bf2f4,Bf4f5][%mdl 32]} Kf7 {[%emt 0:02:31]} 36. f5 {[%emt 0:00:44]} Bc6 {[%emt 0:02:13] [#]} (36... Rd8 $16) 37. Kf2 {[%emt 0:00:30]} ({White should try} 37. Rc1 $1 $18 {[%cal Rc1c6]} Rc8 38. Kf2) 37... Bd7 {[%emt 0:00:01]} 38. Rd4 {[%emt 0:02:57] Against Re4} Re5 {[%emt 0:00:08]} (38... Bc6 $16 {was necessary.}) 39. Nf3 $18 {[%emt 0:01:08]} Re8 {[%emt 0:00:02]} 40. Rf4 {[%emt 0:00:41]} gxf5 {[%emt 0:00:46]} 41. gxf5 {[%emt 0:00:02] Black must now prevent g4.} Rc8 $2 {[%emt 0:00:00] This costs Black the game.} (41... h5 $16) 42. Nd4 {[%emt 0:00:46]} Rc4 {[%emt 0:00:27]} (42... Re8 $142 43. g4 (43. Rh4 Kg7 $16) 43... Re5) 43. Re4 {[%emt 0:00:33]} Kg8 {[%emt 0:00:03]} 44. Ke3 {[%emt 0:00:15]} Rc3+ {[%emt 0:00:09]} 45. Kf4 {[%emt 0:00:10]} (45. Ke2 $142) 45... Rc4 $2 {[%emt 0:00:07]} (45... Rd3 46. Kg4 Rc3) 46. Ne6 {[%emt 0:00:13] White is clearly winning.} Rc2 {[%emt 0:00:20]} 47. Nc5 {[%emt 0:00:08]} Bc6 {[%emt 0:00:05]} 48. d7 {[%emt 0:00:08]} Bxd7 {[%emt 0:00:08]} 49. Nxd7 {[%emt 0:00:02]} Rxg2 {[%emt 0:00:02]} 50. Re7 {[%emt 0:00:25] Weighted Error Value: White=0.15 (very precise) /Black=0.29 (precise)} (50. Nxf6+ $142 Kg7 51. Ne8+ Kg8 52. a3) 1-0